[Event "Live Chess"]
[Site "Chess.com"]
[Date "2023.09.16"]
[Round "-"]
[White "Alplee"]
[Black "Highlanderson"]
[Result "1-0"]
[WhiteElo "1972"]
[BlackElo "1549"]
[TimeControl "900+5"]
[EndTime "6:34:50 PDT"]
[Termination "Alplee venceu por desistência"]

1. d4 {[%clk 0:15:03]} 1... d5 {[%clk 0:14:43.8]} 2. c4 {[%clk 0:15:06.2]} 2...
e6 {[%clk 0:14:41]} 3. Nf3 {[%clk 0:15:09.7]} 3... Nf6 {[%clk 0:14:43.3]} 4. Nc3
{[%clk 0:15:11.6]} 4... c6 {[%clk 0:14:30.1]} 5. e3 {[%clk 0:15:11.7]} 5... Bd6
{[%clk 0:14:19.3]} 6. Qc2 {[%clk 0:15:11.1]} 6... O-O {[%clk 0:14:12]} 7. Bd3
{[%clk 0:15:13.7]} 7... c5 {[%clk 0:13:59.3]} 8. cxd5 {[%clk 0:14:51.6]} 8...
exd5 {[%clk 0:13:51.3]} 9. dxc5 {[%clk 0:14:41.8]} 9... Bxc5 {[%clk 0:13:46.7]}
10. O-O {[%clk 0:14:30.8]} 10... Nc6 {[%clk 0:13:19.9]} 11. a3 {[%clk
0:13:52.4]} 11... Bg4 {[%clk 0:13:10.8]} 12. Ng5 {[%clk 0:09:54.9]} 12... h6
{[%clk 0:13:06.1]} 13. Nh7 {[%clk 0:09:45.2]} 13... Ne5 {[%clk 0:12:50.1]} 14.
Nxf8 {[%clk 0:07:19.2]} 14... Kxf8 {[%clk 0:12:44.1]} 15. Be2 {[%clk 0:07:06.4]}
15... Be6 {[%clk 0:11:52.7]} 16. b4 {[%clk 0:06:35.3]} 16... Bd6 {[%clk
0:10:55.9]} 17. Bb2 {[%clk 0:06:04.3]} 17... a6 {[%clk 0:10:39.1]} 18. Rac1
{[%clk 0:05:56.1]} 18... Rc8 {[%clk 0:10:20]} 19. Qd1 {[%clk 0:05:07.5]} 19...
Nc4 {[%clk 0:09:33.5]} 20. Na4 {[%clk 0:04:04.4]} 20... b5 {[%clk 0:07:31.6]}
21. Bxf6 {[%clk 0:03:51.4]} 21... Qxf6 {[%clk 0:07:16.7]} 22. Bxc4 {[%clk
0:03:13.5]} 22... bxc4 {[%clk 0:07:14.3]} 23. Nc3 {[%clk 0:03:09.2]} 23... Qh4
{[%clk 0:06:19.8]} 24. g3 {[%clk 0:03:00.4]} 24... Qh3 {[%clk 0:06:20.7]} 25.
Nxd5 {[%clk 0:02:47]} 25... Be7 {[%clk 0:05:38.8]} 26. Nf4 {[%clk 0:02:44.7]}
26... Qf5 {[%clk 0:05:29]} 27. Nxe6+ {[%clk 0:02:44.9]} 27... Qxe6 {[%clk
0:05:30]} 28. Qe2 {[%clk 0:02:47.4]} 28... Bf6 {[%clk 0:05:14.6]} 29. Rc2 {[%clk
0:02:40.8]} 29... c3 {[%clk 0:05:13.6]} 30. Rd1 {[%clk 0:02:34.5]} 30... Rc7
{[%clk 0:04:50.4]} 31. e4 {[%clk 0:02:14.6]} 31... Qc8 {[%clk 0:04:39.4]} 32. e5
{[%clk 0:02:12.9]} 32... Bg5 {[%clk 0:04:29.9]} 33. f4 {[%clk 0:02:14.8]} 33...
Be7 {[%clk 0:04:01.9]} 34. Rd3 {[%clk 0:02:18.3]} 34... Qb7 {[%clk 0:03:19.2]}
35. Qf3 {[%clk 0:02:15.2]} 35... Qb5 {[%clk 0:03:07]} 36. Rdxc3 {[%clk
0:02:14.8]} 36... Rxc3 {[%clk 0:03:00.8]} 37. Qa8+ {[%clk 0:01:58.2]} 1-0

[Event "Live Chess"]
[Site "Chess.com"]
[Date "2023.09.16"]
[Round "-"]
[White "RyanDiniz2011"]
[Black "VitorEMS"]
[Result "1-0"]
[WhiteElo "1486"]
[BlackElo "736"]
[TimeControl "900+5"]
[EndTime "6:35:44 PDT"]
[Termination "RyanDiniz2011 venceu por desistência"]

1. d4 {[%clk 0:15:01.8]} 1... d5 {[%clk 0:15:02.1]} 2. c4 {[%clk 0:15:04.7]}
2... dxc4 {[%clk 0:15:04.7]} 3. Nc3 {[%clk 0:15:07.2]} 3... Nf6 {[%clk
0:15:08.2]} 4. Bf4 {[%clk 0:15:06.1]} 4... Bf5 {[%clk 0:15:09.6]} 5. e3 {[%clk
0:15:08.9]} 5... e6 {[%clk 0:15:07.7]} 6. Bxc4 {[%clk 0:15:10.3]} 6... c5 {[%clk
0:14:56.5]} 7. dxc5 {[%clk 0:15:07.3]} 7... Bxc5 {[%clk 0:14:57.2]} 8. Qxd8+
{[%clk 0:15:06.8]} 8... Kxd8 {[%clk 0:14:58.5]} 9. Bg5 {[%clk 0:15:10]} 9... Nc6
{[%clk 0:14:50.9]} 10. Bxf6+ {[%clk 0:15:11.8]} 10... gxf6 {[%clk 0:14:53.9]}
11. Nf3 {[%clk 0:15:07.9]} 11... Kc7 {[%clk 0:14:44.6]} 12. Nb5+ {[%clk
0:15:08.4]} 12... Kd8 {[%clk 0:14:40.7]} 13. Rd1+ {[%clk 0:15:10.9]} 13... Ke8
{[%clk 0:14:43.7]} 14. Nc7+ {[%clk 0:15:13.7]} 14... Kf8 {[%clk 0:14:45.8]} 15.
Nxa8 {[%clk 0:15:16.1]} 15... Kg7 {[%clk 0:14:47.2]} 16. Nc7 {[%clk 0:15:12.8]}
16... e5 {[%clk 0:14:33.6]} 17. g4 {[%clk 0:14:53.7]} 17... Be4 {[%clk
0:14:24.3]} 18. Bd5 {[%clk 0:14:49.6]} 18... Bg6 {[%clk 0:14:13.8]} 19. h4
{[%clk 0:14:49.8]} 19... Bc2 {[%clk 0:14:10.1]} 20. Rc1 {[%clk 0:14:45.8]} 20...
Bd3 {[%clk 0:14:11]} 21. a3 {[%clk 0:14:40.5]} 21... Na5 {[%clk 0:13:42.5]} 22.
Rxc5 {[%clk 0:14:35.1]} 22... b6 {[%clk 0:13:40.6]} 23. Rc3 {[%clk 0:14:36]}
23... Bb1 {[%clk 0:13:37]} 24. b4 {[%clk 0:14:34.4]} 24... Nb3 {[%clk
0:13:34.3]} 25. Bxb3 {[%clk 0:14:36]} 1-0

[Event "Live Chess"]
[Site "Chess.com"]
[Date "2023.09.16"]
[Round "-"]
[White "pedromiguelchess"]
[Black "Ruanfelipe2014"]
[Result "1-0"]
[WhiteElo "1098"]
[BlackElo "966"]
[TimeControl "900+5"]
[EndTime "6:35:46 PDT"]
[Termination "pedromiguelchess venceu por xeque-mate"]

1. e4 {[%clk 0:15:03.4]} 1... e5 {[%clk 0:15:03.1]} 2. Nf3 {[%clk 0:15:05.9]}
2... Nc6 {[%clk 0:15:03.9]} 3. Bc4 {[%clk 0:15:08.5]} 3... Bc5 {[%clk
0:15:02.4]} 4. c3 {[%clk 0:15:09.7]} 4... d6 {[%clk 0:15:01.6]} 5. d3 {[%clk
0:15:12.5]} 5... Bg4 {[%clk 0:14:59.6]} 6. h3 {[%clk 0:15:11.7]} 6... Bh5 {[%clk
0:15:01.6]} 7. Nbd2 {[%clk 0:15:09.3]} 7... Nf6 {[%clk 0:14:58]} 8. O-O {[%clk
0:15:03.2]} 8... g5 {[%clk 0:14:51.6]} 9. Qb3 {[%clk 0:14:24.4]} 9... g4 {[%clk
0:14:41.8]} 10. hxg4 {[%clk 0:14:22.2]} 10... Nxg4 {[%clk 0:14:40.6]} 11. Qxb7
{[%clk 0:13:05.9]} 11... Rb8 {[%clk 0:14:27.8]} 12. Qxc6+ {[%clk 0:13:05.9]}
12... Ke7 {[%clk 0:14:25.9]} 13. d4 {[%clk 0:12:49.4]} 13... exd4 {[%clk
0:14:25]} 14. cxd4 {[%clk 0:12:52.2]} 14... Rb6 {[%clk 0:14:21]} 15. Qa4 {[%clk
0:12:40.8]} 15... Rb4 {[%clk 0:14:17.9]} 16. Qc2 {[%clk 0:12:31.8]} 16... Bb6
{[%clk 0:13:59]} 17. a3 {[%clk 0:12:29.2]} 17... Rg8 {[%clk 0:13:54.9]} 18. axb4
{[%clk 0:11:58.6]} 18... Nf6 {[%clk 0:13:46.2]} 19. e5 {[%clk 0:11:28.1]} 19...
dxe5 {[%clk 0:13:39]} 20. dxe5 {[%clk 0:11:26.1]} 20... Bxf3 {[%clk 0:13:23.1]}
21. Nxf3 {[%clk 0:11:27.1]} 21... Ng4 {[%clk 0:13:19]} 22. Qxh7 {[%clk
0:11:13.9]} 22... Bxf2+ {[%clk 0:13:16.1]} 23. Rxf2 {[%clk 0:11:07.1]} 23...
Nxf2 {[%clk 0:13:18.4]} 24. Qxf7# {[%clk 0:11:10.1]} 1-0

[Event "Live Chess"]
[Site "Chess.com"]
[Date "2023.09.16"]
[Round "-"]
[White "lanofimdojogo"]
[Black "guilhermemazza"]
[Result "0-1"]
[WhiteElo "303"]
[BlackElo "497"]
[TimeControl "900+5"]
[EndTime "6:36:29 PDT"]
[Termination "guilhermemazza venceu por xeque-mate"]

1. e4 {[%clk 0:15:01.8]} 1... e5 {[%clk 0:15:03.9]} 2. Bc4 {[%clk 0:15:02.5]}
2... d5 {[%clk 0:15:05.4]} 3. Bb3 {[%clk 0:15:03]} 3... dxe4 {[%clk 0:15:07.7]}
4. Nh3 {[%clk 0:14:59.2]} 4... Bb4 {[%clk 0:15:10]} 5. O-O {[%clk 0:14:48.9]}
5... Bxh3 {[%clk 0:15:07.3]} 6. gxh3 {[%clk 0:14:50.2]} 6... Qg5+ {[%clk
0:15:10.2]} 7. Kh1 {[%clk 0:14:42.7]} 7... h5 {[%clk 0:15:10.7]} 8. a3 {[%clk
0:14:42.1]} 8... Rh6 {[%clk 0:15:12.8]} 9. axb4 {[%clk 0:14:44.1]} 9... Rg6
{[%clk 0:15:16.2]} 10. Ra5 {[%clk 0:14:44]} 10... Qg2# {[%clk 0:15:19.8]} 0-1

[Event "Live Chess"]
[Site "Chess.com"]
[Date "2023.09.16"]
[Round "-"]
[White "SaladaChess"]
[Black "rakohibri"]
[Result "1-0"]
[WhiteElo "1083"]
[BlackElo "703"]
[TimeControl "900+5"]
[EndTime "6:39:00 PDT"]
[Termination "SaladaChess venceu por tempo"]

1. c4 {[%clk 0:15:02.5]} 1... e5 {[%clk 0:14:56.2]} 2. Nc3 {[%clk 0:15:06]} 2...
Nf6 {[%clk 0:14:42.6]} 3. g3 {[%clk 0:14:59.7]} 3... Bc5 {[%clk 0:14:23.3]} 4.
Bg2 {[%clk 0:15:02.2]} 4... c6 {[%clk 0:14:08]} 5. d3 {[%clk 0:14:48.3]} 5... d6
{[%clk 0:13:50.3]} 6. Nf3 {[%clk 0:14:50.6]} 6... Bf5 {[%clk 0:13:17.4]} 7. Bg5
{[%clk 0:14:49.5]} 7... h6 {[%clk 0:12:56.5]} 8. Bxf6 {[%clk 0:14:52]} 8... Qxf6
{[%clk 0:12:55.5]} 9. O-O {[%clk 0:14:55.6]} 9... Nd7 {[%clk 0:12:55.2]} 10. Qb3
{[%clk 0:14:52]} 10... O-O {[%clk 0:12:22.6]} 11. Nd2 {[%clk 0:14:17.7]} 11...
Bb6 {[%clk 0:11:53]} 12. Nde4 {[%clk 0:14:18.2]} 12... Qd8 {[%clk 0:11:24.2]}
13. Nxd6 {[%clk 0:14:13.3]} 13... Nc5 {[%clk 0:11:16.9]} 14. Qb4 {[%clk
0:13:38.7]} 14... Qxd6 {[%clk 0:11:10.8]} 15. Na4 {[%clk 0:13:35.2]} 15... Qd8
{[%clk 0:10:52.1]} 16. Nxc5 {[%clk 0:13:34.9]} 16... Qd6 {[%clk 0:10:36.3]} 17.
Na6 {[%clk 0:12:49]} 17... c5 {[%clk 0:10:04.7]} 18. Qd2 {[%clk 0:12:24.8]}
18... bxa6 {[%clk 0:10:01.4]} 19. Bxa8 {[%clk 0:12:28]} 19... Rxa8 {[%clk
0:09:52.4]} 20. a3 {[%clk 0:11:59.2]} 20... Bh3 {[%clk 0:09:28.7]} 21. Rfe1
{[%clk 0:11:50.4]} 21... Qc7 {[%clk 0:08:55.1]} 22. Qe3 {[%clk 0:11:38.3]} 22...
Qc6 {[%clk 0:08:27.9]} 23. Qf3 {[%clk 0:11:38.2]} 23... Qxf3 {[%clk 0:07:48.9]}
24. exf3 {[%clk 0:11:41.9]} 24... Re8 {[%clk 0:07:43.9]} 25. f4 {[%clk
0:11:38.6]} 25... f6 {[%clk 0:07:13.5]} 26. fxe5 {[%clk 0:11:16.4]} 26... Rxe5
{[%clk 0:06:55.6]} 27. Rxe5 {[%clk 0:11:18.6]} 27... fxe5 {[%clk 0:06:54.3]} 28.
Re1 {[%clk 0:11:20.9]} 28... Bc7 {[%clk 0:06:50.1]} 29. f3 {[%clk 0:11:12]}
29... Kf7 {[%clk 0:05:31.3]} 30. g4 {[%clk 0:11:13.3]} 30... h5 {[%clk
0:04:56.1]} 31. Kf2 {[%clk 0:11:03.9]} 31... hxg4 {[%clk 0:04:54.3]} 32. Kg3
{[%clk 0:11:07.8]} 32... Kf8 {[%clk 0:04:43.5]} 33. fxg4 {[%clk 0:11:03.4]}
33... Bxg4 {[%clk 0:03:58.1]} 34. Kxg4 {[%clk 0:11:06.4]} 34... e4 {[%clk
0:03:43.8]} 35. Rxe4 {[%clk 0:11:02.8]} 35... Bxh2 {[%clk 0:03:41.1]} 36. Re6
{[%clk 0:11:05.2]} 36... Kf7 {[%clk 0:03:30.1]} 37. Rxa6 {[%clk 0:11:08.7]}
37... Bb8 {[%clk 0:03:16.4]} 38. Rc6 {[%clk 0:11:03.3]} 38... Bh2 {[%clk
0:02:45.2]} 39. Rxc5 {[%clk 0:11:03]} 39... Bg1 {[%clk 0:02:48.6]} 40. Rf5+
{[%clk 0:11:05.2]} 40... Ke6 {[%clk 0:02:33.4]} 41. Rg5 {[%clk 0:11:00]} 41...
Bd4 {[%clk 0:02:34.3]} 42. b4 {[%clk 0:10:56.7]} 42... Kf6 {[%clk 0:02:20.3]}
43. Rf5+ {[%clk 0:10:58.1]} 43... Kg6 {[%clk 0:02:15.5]} 44. c5 {[%clk
0:10:50.5]} 44... Kh6 {[%clk 0:01:56.2]} 45. c6 {[%clk 0:10:48.1]} 45... g6
{[%clk 0:01:54.6]} 46. Rd5 {[%clk 0:10:40]} 46... Bb6 {[%clk 0:01:10.7]} 47. Rd7
{[%clk 0:10:32.2]} 47... g5 {[%clk 0:00:55.2]} 48. c7 {[%clk 0:10:34.7]} 48...
Bxc7 {[%clk 0:00:15.6]} 49. Rxc7 {[%clk 0:10:38]} 49... a6 {[%clk 0:00:09.4]}
50. d4 {[%clk 0:10:41.1]} 1-0

[Event "Live Chess"]
[Site "Chess.com"]
[Date "2023.09.16"]
[Round "-"]
[White "PedroRossi14"]
[Black "Sabadin21"]
[Result "0-1"]
[WhiteElo "523"]
[BlackElo "906"]
[TimeControl "900+5"]
[EndTime "6:39:04 PDT"]
[Termination "Sabadin21 venceu por desistência"]

1. e4 {[%clk 0:15:02.9]} 1... e5 {[%clk 0:15:04.3]} 2. Nf3 {[%clk 0:15:05.6]}
2... Nf6 {[%clk 0:15:08.6]} 3. Nc3 {[%clk 0:15:05.1]} 3... Nc6 {[%clk
0:15:11.8]} 4. Be2 {[%clk 0:15:07.5]} 4... Bc5 {[%clk 0:15:13.5]} 5. O-O {[%clk
0:15:10.4]} 5... O-O {[%clk 0:15:16]} 6. Nd5 {[%clk 0:15:13.1]} 6... Nxd5 {[%clk
0:15:18.9]} 7. exd5 {[%clk 0:15:16.2]} 7... Ne7 {[%clk 0:15:23]} 8. Nxe5 {[%clk
0:15:19.6]} 8... Nxd5 {[%clk 0:15:25.6]} 9. c4 {[%clk 0:15:17.4]} 9... d6 {[%clk
0:15:26.8]} 10. Ng4 {[%clk 0:15:12.7]} 10... Ne7 {[%clk 0:15:24.5]} 11. Qc2
{[%clk 0:14:49.9]} 11... Bxg4 {[%clk 0:15:23.9]} 12. Bxg4 {[%clk 0:14:53.4]}
12... Nc6 {[%clk 0:15:23]} 13. Qe4 {[%clk 0:14:46.2]} 13... Qe8 {[%clk
0:15:23.2]} 14. Qf5 {[%clk 0:14:47.3]} 14... Nd4 {[%clk 0:15:07.7]} 15. Qh5
{[%clk 0:14:36.8]} 15... Qe7 {[%clk 0:15:05]} 16. d3 {[%clk 0:14:36.4]} 16...
Rfe8 {[%clk 0:15:07.8]} 17. Bg5 {[%clk 0:14:39.3]} 17... Qf8 {[%clk 0:15:04]}
18. Rfe1 {[%clk 0:14:35]} 18... Rxe1+ {[%clk 0:15:06.2]} 19. Rxe1 {[%clk
0:14:38.4]} 19... Re8 {[%clk 0:15:10.1]} 20. Rd1 {[%clk 0:14:38.8]} 20... Re2
{[%clk 0:14:59.7]} 21. Bxe2 {[%clk 0:14:40]} 21... Nxe2+ {[%clk 0:15:01.3]} 22.
Qxe2 {[%clk 0:14:42.9]} 22... c6 {[%clk 0:14:57]} 23. Re1 {[%clk 0:14:45.7]}
23... d5 {[%clk 0:14:55.2]} 24. Qe8 {[%clk 0:14:48.7]} 24... dxc4 {[%clk
0:14:57.3]} 25. Be7 {[%clk 0:14:52]} 25... Qxe8 {[%clk 0:15:00.6]} 0-1

[Event "Live Chess"]
[Site "Chess.com"]
[Date "2023.09.16"]
[Round "-"]
[White "lgomessc"]
[Black "Rafael-2021"]
[Result "0-1"]
[WhiteElo "1135"]
[BlackElo "1101"]
[TimeControl "900+5"]
[EndTime "6:39:09 PDT"]
[Termination "Rafael-2021 venceu por xeque-mate"]

1. e4 {[%clk 0:15:02.4]} 1... e5 {[%clk 0:15:01.1]} 2. Nf3 {[%clk 0:15:05.5]}
2... Nc6 {[%clk 0:15:02.4]} 3. Bc4 {[%clk 0:15:08.5]} 3... d6 {[%clk 0:15:06.1]}
4. Nc3 {[%clk 0:15:11.6]} 4... Bg4 {[%clk 0:15:05.8]} 5. h3 {[%clk 0:15:09.5]}
5... Bh5 {[%clk 0:15:08.9]} 6. O-O {[%clk 0:15:10.6]} 6... Nd4 {[%clk
0:15:09.2]} 7. Bb5+ {[%clk 0:14:46.2]} 7... c6 {[%clk 0:15:11.6]} 8. Be2 {[%clk
0:14:44.7]} 8... Nxe2+ {[%clk 0:15:12.8]} 9. Qxe2 {[%clk 0:14:46.4]} 9... Nf6
{[%clk 0:15:14.9]} 10. d3 {[%clk 0:14:41.9]} 10... Be7 {[%clk 0:15:16.9]} 11.
Bg5 {[%clk 0:14:35.6]} 11... h6 {[%clk 0:15:18.1]} 12. Bxf6 {[%clk 0:14:39.1]}
12... Bxf6 {[%clk 0:15:21.4]} 13. Qe3 {[%clk 0:14:32.2]} 13... Bg5 {[%clk
0:15:13.2]} 14. Nxg5 {[%clk 0:14:34.9]} 14... Qxg5 {[%clk 0:15:16]} 15. Qxg5
{[%clk 0:14:38.3]} 15... hxg5 {[%clk 0:15:19.5]} 16. g4 {[%clk 0:13:55.7]} 16...
Bg6 {[%clk 0:15:22]} 17. Kg2 {[%clk 0:13:57.7]} 17... O-O-O {[%clk 0:15:22.2]}
18. Rad1 {[%clk 0:13:37.4]} 18... Rh4 {[%clk 0:15:22.6]} 19. d4 {[%clk
0:13:35.9]} 19... exd4 {[%clk 0:15:21.4]} 20. Rxd4 {[%clk 0:13:38.7]} 20... Kc7
{[%clk 0:15:10.8]} 21. Rc4 {[%clk 0:13:06.3]} 21... Rdh8 {[%clk 0:15:06.6]} 22.
Nd5+ {[%clk 0:12:59.1]} 22... Kd7 {[%clk 0:15:06.4]} 23. Ne3 {[%clk 0:12:28.4]}
23... Rxh3 {[%clk 0:15:04.7]} 24. Rd4 {[%clk 0:11:58.4]} 24... c5 {[%clk
0:15:01.7]} 25. Rd5 {[%clk 0:11:58.7]} 25... Bxe4+ {[%clk 0:15:02.1]} 26. f3
{[%clk 0:11:54]} 26... Bxd5 {[%clk 0:14:59.8]} 27. Nxd5 {[%clk 0:11:55.9]} 27...
Rh2+ {[%clk 0:14:59.9]} 28. Kg1 {[%clk 0:11:47.2]} 28... Rh1+ {[%clk 0:15:02.3]}
29. Kf2 {[%clk 0:11:51]} 29... R8h2+ {[%clk 0:15:02.7]} 30. Ke1 {[%clk
0:11:52.1]} 30... Rxf1+ {[%clk 0:15:04.3]} 31. Kxf1 {[%clk 0:11:55.9]} 31...
Rxc2 {[%clk 0:15:07.8]} 32. Ne3 {[%clk 0:11:57]} 32... Rxb2 {[%clk 0:15:11.1]}
33. Ng2 {[%clk 0:11:37.6]} 33... Rxa2 {[%clk 0:15:11.7]} 34. f4 {[%clk
0:11:39.9]} 34... c4 {[%clk 0:15:08.3]} 35. fxg5 {[%clk 0:11:35.9]} 35... Rd2
{[%clk 0:15:05.2]} 36. Ne3 {[%clk 0:11:35.3]} 36... c3 {[%clk 0:14:57.2]} 37.
Ke1 {[%clk 0:11:38]} 37... Rh2 {[%clk 0:14:55.3]} 38. Kd1 {[%clk 0:11:38.5]}
38... b5 {[%clk 0:14:51.5]} 39. Nd5 {[%clk 0:11:21.8]} 39... c2+ {[%clk
0:14:45.7]} 40. Kc1 {[%clk 0:11:23.6]} 40... a5 {[%clk 0:14:48.9]} 41. Ne3
{[%clk 0:11:25.7]} 41... b4 {[%clk 0:14:48.9]} 42. Nxc2 {[%clk 0:11:29.5]} 42...
b3 {[%clk 0:14:51.9]} 43. Na3 {[%clk 0:11:28.6]} 43... a4 {[%clk 0:14:48]} 44.
Kb1 {[%clk 0:11:22.9]} 44... Ra2 {[%clk 0:14:43.7]} 45. Nc4 {[%clk 0:11:14.9]}
45... a3 {[%clk 0:14:44.8]} 46. Nb6+ {[%clk 0:11:01.8]} 46... Kc6 {[%clk
0:14:47.5]} 47. Nc4 {[%clk 0:11:03.9]} 47... d5 {[%clk 0:14:49.3]} 48. Na5+
{[%clk 0:11:04.9]} 48... Kb5 {[%clk 0:14:52.1]} 49. Nxb3 {[%clk 0:11:08.5]}
49... Rb2+ {[%clk 0:14:54.7]} 50. Ka1 {[%clk 0:11:06.6]} 50... Rxb3 {[%clk
0:14:56.2]} 51. Ka2 {[%clk 0:11:10.3]} 51... Rg3 {[%clk 0:14:58.1]} 52. Ka1
{[%clk 0:11:10.8]} 52... Rg2 {[%clk 0:14:59.6]} 53. Kb1 {[%clk 0:11:14.4]} 53...
Kb4 {[%clk 0:15:03.3]} 54. Ka1 {[%clk 0:11:17.9]} 54... Kb3 {[%clk 0:15:03.1]}
55. Kb1 {[%clk 0:11:21.7]} 55... Rg1# {[%clk 0:15:06.9]} 0-1

[Event "Live Chess"]
[Site "Chess.com"]
[Date "2023.09.16"]
[Round "-"]
[White "Highlanderson"]
[Black "AnaHelenaAulicino"]
[Result "1-0"]
[WhiteElo "1549"]
[BlackElo "614"]
[TimeControl "900+5"]
[EndTime "6:40:43 PDT"]
[Termination "Highlanderson venceu por desistência"]

1. e4 {[%clk 0:15:00.8]} 1... e5 {[%clk 0:15:03.4]} 2. Nf3 {[%clk 0:15:04.3]}
2... Nc6 {[%clk 0:15:02.8]} 3. a3 {[%clk 0:15:06.2]} 3... Bc5 {[%clk 0:14:58.8]}
4. Nxe5 {[%clk 0:15:08.3]} 4... Nxe5 {[%clk 0:14:53.9]} 5. d4 {[%clk 0:15:07.3]}
5... Bxd4 {[%clk 0:14:56.6]} 6. Qxd4 {[%clk 0:15:08.1]} 6... Ng4 {[%clk
0:14:57.3]} 7. Qxg7 {[%clk 0:14:53.9]} 7... d6 {[%clk 0:14:42.6]} 8. Qxh8 {[%clk
0:14:56.2]} 8... Kf8 {[%clk 0:14:43.5]} 9. Qc3 {[%clk 0:14:37.4]} 9... N8f6
{[%clk 0:14:37]} 10. h3 {[%clk 0:14:27.7]} 10... Nxe4 {[%clk 0:14:37.4]} 11.
Qh8+ {[%clk 0:14:18.8]} 11... Ke7 {[%clk 0:14:34.1]} 12. Qxd8+ {[%clk
0:14:20.2]} 12... Kxd8 {[%clk 0:14:36.9]} 13. hxg4 {[%clk 0:14:24.2]} 13... Bxg4
{[%clk 0:14:37.4]} 14. f3 {[%clk 0:14:27.4]} 14... Ng3 {[%clk 0:14:29.8]} 15.
Rxh7 {[%clk 0:14:21.5]} 15... Bc8 {[%clk 0:14:23.6]} 16. Bg5+ {[%clk 0:13:51.6]}
16... Kd7 {[%clk 0:14:22.8]} 17. Rxf7+ {[%clk 0:13:50.2]} 17... Ke6 {[%clk
0:14:25.4]} 18. Bc4+ {[%clk 0:13:37.4]} 18... Ke5 {[%clk 0:14:26.5]} 19. Bf6+
{[%clk 0:13:21.5]} 19... Kf5 {[%clk 0:14:22.8]} 20. Bh4+ {[%clk 0:13:21.7]}
20... Kg6 {[%clk 0:14:24.1]} 21. Bxg3 {[%clk 0:13:23.8]} 1-0

[Event "Live Chess"]
[Site "Chess.com"]
[Date "2023.09.16"]
[Round "-"]
[White "Mariafernanda2805"]
[Black "asafefausto"]
[Result "1-0"]
[WhiteElo "994"]
[BlackElo "561"]
[TimeControl "900+5"]
[EndTime "6:41:24 PDT"]
[Termination "Mariafernanda2805 venceu por xeque-mate"]

1. e4 {[%clk 0:15:00.6]} 1... e5 {[%clk 0:14:59.8]} 2. Bc4 {[%clk 0:15:03.1]}
2... Nf6 {[%clk 0:14:57.4]} 3. Nc3 {[%clk 0:15:04.6]} 3... c6 {[%clk 0:14:51.6]}
4. Nf3 {[%clk 0:15:05.4]} 4... d6 {[%clk 0:14:53.7]} 5. O-O {[%clk 0:15:07]}
5... d5 {[%clk 0:14:50.5]} 6. exd5 {[%clk 0:15:08.4]} 6... cxd5 {[%clk
0:14:52.9]} 7. Bb5+ {[%clk 0:15:06.6]} 7... Bd7 {[%clk 0:14:51.2]} 8. Bxd7+
{[%clk 0:15:09.3]} 8... Nbxd7 {[%clk 0:14:48]} 9. d3 {[%clk 0:15:10]} 9... Bc5
{[%clk 0:14:47.8]} 10. Bg5 {[%clk 0:15:10.2]} 10... h6 {[%clk 0:14:40]} 11. Bxf6
{[%clk 0:15:13.4]} 11... Qxf6 {[%clk 0:14:33.6]} 12. Nxd5 {[%clk 0:15:13]} 12...
Qc6 {[%clk 0:14:19.2]} 13. c4 {[%clk 0:15:11.8]} 13... O-O {[%clk 0:14:19.2]}
14. h3 {[%clk 0:15:08.8]} 14... Rad8 {[%clk 0:14:07.1]} 15. d4 {[%clk
0:15:01.2]} 15... e4 {[%clk 0:13:56]} 16. dxc5 {[%clk 0:15:02.5]} 16... exf3
{[%clk 0:13:57.5]} 17. Ne7+ {[%clk 0:15:05.2]} 17... Kh8 {[%clk 0:13:46.4]} 18.
Nxc6 {[%clk 0:15:08.8]} 18... Nxc5 {[%clk 0:13:47]} 19. Nxd8 {[%clk 0:15:03.5]}
19... fxg2 {[%clk 0:13:32.5]} 20. Kxg2 {[%clk 0:15:03.8]} 20... Rxd8 {[%clk
0:13:34]} 21. Qxd8+ {[%clk 0:15:05.4]} 21... Kh7 {[%clk 0:13:34.2]} 22. Qd5
{[%clk 0:15:06.2]} 22... b6 {[%clk 0:13:33.5]} 23. Rfe1 {[%clk 0:15:03.8]} 23...
Ne6 {[%clk 0:13:31]} 24. Qe4+ {[%clk 0:14:57.5]} 24... g6 {[%clk 0:13:24.8]} 25.
Qf3 {[%clk 0:14:53.5]} 25... Ng5 {[%clk 0:13:22.9]} 26. Qc3 {[%clk 0:14:46.8]}
26... f5 {[%clk 0:13:16.9]} 27. Re7+ {[%clk 0:14:46.5]} 27... Kg8 {[%clk
0:13:12.2]} 28. Qg7# {[%clk 0:14:48.8]} 1-0

[Event "Live Chess"]
[Site "Chess.com"]
[Date "2023.09.16"]
[Round "-"]
[White "SaladaChess"]
[Black "lanofimdojogo"]
[Result "1-0"]
[WhiteElo "1084"]
[BlackElo "300"]
[TimeControl "900+5"]
[EndTime "6:42:09 PDT"]
[Termination "SaladaChess venceu por xeque-mate"]

1. c4 {[%clk 0:15:02.8]} 1... a5 {[%clk 0:14:53.5]} 2. d4 {[%clk 0:15:04]} 2...
Ra6 {[%clk 0:14:53.7]} 3. e4 {[%clk 0:15:06]} 3... Rc6 {[%clk 0:14:51.7]} 4. d5
{[%clk 0:15:08.4]} 4... Ra6 {[%clk 0:14:51.6]} 5. c5 {[%clk 0:15:12.2]} 5... g5
{[%clk 0:14:47.8]} 6. Bxa6 {[%clk 0:15:15.6]} 6... bxa6 {[%clk 0:14:49.5]} 7. b3
{[%clk 0:15:19]} 7... Nf6 {[%clk 0:14:48.5]} 8. Bb2 {[%clk 0:15:17.9]} 8... Nxe4
{[%clk 0:14:40.3]} 9. Bxh8 {[%clk 0:15:18.9]} 9... Nxc5 {[%clk 0:14:24.6]} 10.
Nf3 {[%clk 0:15:04.4]} 10... h6 {[%clk 0:14:24.1]} 11. Qd4 {[%clk 0:14:58.6]}
11... Ne6 {[%clk 0:14:13.4]} 12. dxe6 {[%clk 0:15:01.6]} 12... fxe6 {[%clk
0:14:16.2]} 13. Qe4 {[%clk 0:14:59.4]} 13... Nc6 {[%clk 0:14:13]} 14. Qg6#
{[%clk 0:15:03.3]} 1-0

[Event "Live Chess"]
[Site "Chess.com"]
[Date "2023.09.16"]
[Round "-"]
[White "Rafael-2021"]
[Black "PedroRossi14"]
[Result "1-0"]
[WhiteElo "1109"]
[BlackElo "522"]
[TimeControl "900+5"]
[EndTime "6:42:14 PDT"]
[Termination "Rafael-2021 venceu por desistência"]

1. e4 {[%clk 0:14:58.8]} 1... c6 {[%clk 0:15:02.2]} 2. d4 {[%clk 0:15:00.8]}
2... d5 {[%clk 0:15:03.4]} 3. e5 {[%clk 0:15:04.4]} 3... Bf5 {[%clk 0:15:06.2]}
4. Nf3 {[%clk 0:15:07.8]} 4... e6 {[%clk 0:15:09.6]} 5. Bd3 {[%clk 0:15:11.5]}
5... Bxd3 {[%clk 0:15:10.8]} 6. Qxd3 {[%clk 0:15:15.4]} 6... Be7 {[%clk
0:15:13.5]} 7. Nc3 {[%clk 0:15:18]} 7... Nh6 {[%clk 0:15:15.7]} 8. Bxh6 {[%clk
0:15:19.4]} 8... gxh6 {[%clk 0:15:16.1]} 9. O-O {[%clk 0:15:20.9]} 9... Nd7
{[%clk 0:15:16]} 10. Rfe1 {[%clk 0:15:18.7]} 10... Rg8 {[%clk 0:15:18.1]} 11.
Qxh7 {[%clk 0:15:12]} 11... Rg6 {[%clk 0:15:05.7]} 12. Qh8+ {[%clk 0:15:04.6]}
12... Bf8 {[%clk 0:15:06.5]} 13. g3 {[%clk 0:14:55.5]} 13... Qb6 {[%clk
0:15:00.9]} 14. Nh4 {[%clk 0:14:57.2]} 14... O-O-O {[%clk 0:14:47.4]} 15. Nxg6
{[%clk 0:15:00.1]} 15... Be7 {[%clk 0:14:47.2]} 16. Nxe7+ {[%clk 0:15:01.2]} 1-0